[Event "WJCC U20 Girls 2019"]
[Site "New Delhi"]
[Date "2019.10.19"]
[Round "6.24"]
[White "Harshini A"]
[Black "Gomez Barrera, Javiera Belen"]
[Result "0-1"]
[ECO "C91"]
[WhiteElo "2230"]
[BlackElo "2033"]
[Annotator "NA"]
[PlyCount "138"]
[EventDate "2019.10.15"]
[EventType "swiss"]
[EventCountry "IND"]
[SourceTitle "playchess.com"]
[Source "ChessBase"]
[SourceQuality "1"]
[TimeControl "40/5400+30:1800+30"]

1. e4 {[%emt 0:00:00]} e5 {[%emt 0:00:00]} 2. Nf3 {[%emt 0:00:00]} Nc6 {[%emt 0:00:00]} 3. Bb5 {[%emt 0:00:00]} a6 {[%emt 0:00:16]} 4. Ba4 {[%emt 0:00:00]} Nf6 {[%emt 0:00:11]} 5. O-O {[%emt 0:00:00]} Be7 {[%emt 0:00:11]} 6. Re1 {[%emt 0:00:06]} b5 {[%emt 0:00:11]} 7. Bb3 {[%emt 0:00:04]} d6 {[%emt 0:00:08]} 8. c3 {[%emt 0:00:04]} O-O {[%emt 0:00:09]} 9. d4 {[%emt 0:00:03]} Bg4 {[%emt 0:02:21]} 10. Be3 {[%emt 0:03:54]} exd4 {[%emt 0:02:14]} 11. cxd4 {[%emt 0:00:14]} Na5 {[%emt 0:00:16]} 12. Bc2 {[%emt 0:00:53]} c5 {[%emt 0:00:15]} 13. h3 {[%emt 0:00:50]} Bh5 {[%emt 0:00:33]} 14. Nbd2 {[%emt 0:01:46]} cxd4 {[%emt 0:27:38]} 15. Bxd4 {[%emt 0:00:26]} Nc6 {[%emt 0:00:28]} 16. Nb3 {[%emt 0:11:11]} Nd7 {[%emt 0:11:33]} 17. Bd3 {[%emt 0:07:23]} Nxd4 {[%emt 0:06:20]} 18. Nbxd4 {[%emt 0:00:09]} Bf6 {[%emt 0:00:19]} 19. Qd2 {[%emt 0:03:51]} Qb6 {[%emt 0:06:34]} 20. Bf1 {[%emt 0:11:18]} Rfe8 {[%emt 0:12:05]} 21. Rac1 {[%emt 0:27:11]} Nc5 {[%emt 0:04:02]} 22. Qc2 {[%emt 0:01:03]} Ne6 {[%emt 0:17:44]} 23. Nxe6 {[%emt 0:05:54]} Rxe6 {[%emt 0:00:23]} 24. Nd2 {[%emt 0:02:37]} Rae8 {[%emt 0:01:35]} 25. b4 {[%emt 0:02:25]} Bh4 {[%emt 0:02:03]} 26. Nf3 {[%emt 0:03:02]} Bxf3 {[%emt 0:00:56]} 27. gxf3 {[%emt 0:00:02]} h6 {[%emt 0:01:16]} 28. Re2 {[%emt 0:01:52]} Qd8 {[%emt 0:01:56]} 29. f4 {[%emt 0:00:40]} Qf6 {[%emt 0:01:17]} 30. Qd2 {[%emt 0:10:14]} g5 {[%emt 0:01:24]} 31. Bg2 {[%emt 0:00:30]} gxf4 {[%emt 0:00:15]} 32. Bf3 {[%emt 0:00:06]} Re5 {[%emt 0:00:48]} 33. Ree1 {[%emt 0:03:07]} Kh8 {[%emt 0:00:37]} 34. Rc6 {[%emt 0:01:41]} Qg7+ {[%emt 0:00:29]} 35. Kh1 {[%emt 0:01:57]} Rg8 {[%emt 0:00:26]} 36. Rxd6 Rg5 {[%emt 0:00:32]} 37. Bg4 {[%emt 0:02:51]} h5 {[%emt 0:00:29]} 38. Qxf4 {[%emt 0:00:48]} hxg4 {[%emt 0:00:15]} 39. hxg4 {[%emt 0:00:07]} Qh7 {[%emt 0:00:46]} 40. Qf6+ {[%emt 0:00:56]} R5g7 {[%emt 0:00:16]} 41. Qh6 {[%emt 0:02:27]} Rxg4 {[%emt 0:09:03]} 42. Re3 {[%emt 0:04:24]} Bxf2 {[%emt 0:06:50]} 43. Qxh7+ Kxh7 {[%emt 0:00:05]} 44. Rh3+ {[%emt 0:00:13]} Bh4 {[%emt 0:02:30]} 45. Rf3 {[%emt 0:02:15]} Rg1+ {[%emt 0:06:33]} 46. Kh2 {[%emt 0:00:06]} Bg3+ {[%emt 0:00:32]} 47. Kxg1 {[%emt 0:00:07]} Bxd6+ {[%emt 0:00:01]} 48. Kf2 {[%emt 0:00:11]} Kg7 {[%emt 0:00:55]} 49. a3 {[%emt 0:01:06]} Rc8 {[%emt 0:00:48]} 50. Rd3 {[%emt 0:00:44]} Be5 {[%emt 0:00:27]} 51. Rd5 {[%emt 0:00:23]} Kf6 {[%emt 0:01:22]} 52. a4 {[%emt 0:00:35]} bxa4 {[%emt 0:00:16]} 53. Ra5 {[%emt 0:00:06]} Rc6 {[%emt 0:00:48]} 54. Rxa4 {[%emt 0:00:08]} Bc3 {[%emt 0:01:03]} 55. Ke3 {[%emt 0:00:27]} Rb6 {[%emt 0:00:22]} 56. Kd3 {[%emt 0:00:51]} Bxb4 {[%emt 0:00:07]} 57. Kc4 {[%emt 0:00:10]} a5 {[%emt 0:00:09]} 58. Ra1 {[%emt 0:00:10]} Ke5 {[%emt 0:01:05]} 59. Rf1 {[%emt 0:01:05]} Rf6 60. Rh1 Kxe4 {[%emt 0:00:34]} 61. Rh4+ {[%emt 0:01:00]} Rf4 {[%emt 0:00:07]} 62. Rh5 {[%emt 0:00:05]} f5 {[%emt 0:00:19]} 63. Rh8 {[%emt 0:00:07]} Ke3+ {[%emt 0:00:23]} 64. Kb3 {[%emt 0:00:05]} Rf3 {[%emt 0:00:23]} 65. Re8+ {[%emt 0:00:09]} Kf2+ {[%emt 0:00:07]} 66. Ka2 {[%emt 0:00:17]} f4 {[%emt 0:00:15]} 67. Rc8 {[%emt 0:00:31]} Kg2 {[%emt 0:00:42]} 68. Rg8+ {[%emt 0:00:11]} Rg3 {[%emt 0:00:05]} 69. Re8 {[%emt 0:00:32]} f3 {[%emt 0:00:13]} 0-1

[Event "WJCC U20 Girls 2019"]
[Site "New Delhi"]
[Date "2019.10.19"]
[Round "6.25"]
[White "Fretel, Liza"]
[Black "Cervantes Landeiro, Thalia"]
[Result "0-1"]
[ECO "B24"]
[WhiteElo "1877"]
[BlackElo "2176"]
[Annotator "NA"]
[PlyCount "66"]
[EventDate "2019.10.15"]
[EventType "swiss"]
[EventCountry "IND"]
[SourceTitle "playchess.com"]
[Source "ChessBase"]
[SourceQuality "1"]
[TimeControl "40/5400+30:1800+30"]

1. e4 {[%emt 0:00:00]} c5 {[%emt 0:00:00]} 2. Nc3 {[%emt 0:00:00]} Nc6 {[%emt 0:00:00]} 3. g3 {[%emt 0:00:00]} g6 {[%emt 0:00:01]} 4. Bg2 {[%emt 0:00:13]} Bg7 {[%emt 0:00:10]} 5. d3 {[%emt 0:00:08]} e6 {[%emt 0:01:16]} 6. Be3 {[%emt 0:00:07]} d6 {[%emt 0:00:30]} 7. Nh3 {[%emt 0:02:08]} Nge7 {[%emt 0:02:00]} 8. f4 {[%emt 0:01:37]} Rb8 {[%emt 0:05:06]} 9. O-O {[%emt 0:01:28]} O-O {[%emt 0:01:55]} 10. Qd2 {[%emt 0:05:15]} Qa5 {[%emt 0:08:27]} 11. Kh1 {[%emt 0:04:16]} b5 {[%emt 0:04:24]} 12. f5 {[%emt 0:02:20]} exf5 {[%emt 0:06:06]} 13. exf5 {[%emt 0:00:28]} Nxf5 {[%emt 0:04:04]} 14. Ng5 {[%emt 0:17:37]} Ncd4 {[%emt 0:06:53]} 15. Bf4 {[%emt 0:05:10]} Qd8 {[%emt 0:13:17]} 16. Nge4 {[%emt 0:12:04]} Ne6 {[%emt 0:09:37]} 17. a4 {[%emt 0:07:26]} Nxf4 {[%emt 0:02:26]} 18. Qxf4 {[%emt 0:00:35]} b4 {[%emt 0:10:09]} 19. Nd1 {[%emt 0:00:54]} Be5 {[%emt 0:01:10]} 20. Qd2 {[%emt 0:02:35]} Bb7 {[%emt 0:03:26]} 21. c3 {[%emt 0:05:22]} bxc3 {[%emt 0:01:22]} 22. bxc3 {[%emt 0:00:13]} Qe7 {[%emt 0:02:23]} 23. Ne3 {[%emt 0:03:21]} Nxe3 {[%emt 0:01:13]} 24. Qxe3 {[%emt 0:00:04]} f5 {[%emt 0:01:00]} 25. Ng5 {[%emt 0:03:05]} Bxg2+ {[%emt 0:00:24]} 26. Kxg2 {[%emt 0:00:05]} Rb2+ {[%emt 0:00:42]} 27. Kh1 {[%emt 0:07:04]} Qb7+ {[%emt 0:01:29]} 28. Nf3 {[%emt 0:01:47]} f4 {[%emt 0:02:17]} 29. gxf4 {[%emt 0:00:38]} Rxf4 {[%emt 0:00:58]} 30. d4 {[%emt 0:03:35]} Rxh2+ {[%emt 0:03:45]} 31. Kxh2 {[%emt 0:00:54]} Rxf3+ {[%emt 0:00:11]} 32. Qxe5 {[%emt 0:02:28]} dxe5 {[%emt 0:00:12]} 33. Rab1 {[%emt 0:00:55]} Qe4 {[%emt 0:00:18]} 0-1

[Event "WJCC U20 Girls 2019"]
[Site "New Delhi"]
[Date "2019.10.19"]
[Round "6.26"]
[White "Eesha Ajay Sarda"]
[Black "Nilssen, Ellen Fredericia"]
[Result "0-1"]
[ECO "C01"]
[WhiteElo "1744"]
[BlackElo "2137"]
[Annotator "NA"]
[PlyCount "108"]
[EventDate "2019.10.15"]
[EventType "swiss"]
[EventCountry "IND"]
[SourceTitle "playchess.com"]
[Source "ChessBase"]
[SourceQuality "1"]
[TimeControl "40/5400+30:1800+30"]

1. e4 e6 {[%emt 0:00:00]} 2. d4 {[%emt 0:00:00]} d5 {[%emt 0:00:00]} 3. exd5 {[%emt 0:00:00]} exd5 {[%emt 0:00:00]} 4. Bd3 {[%emt 0:00:00]} c5 {[%emt 0:00:54]} 5. dxc5 {[%emt 0:00:44]} Bxc5 {[%emt 0:00:13]} 6. Nf3 {[%emt 0:00:24]} Nf6 {[%emt 0:06:59]} 7. O-O {[%emt 0:01:26]} O-O {[%emt 0:00:08]} 8. h3 {[%emt 0:00:41]} Nc6 {[%emt 0:04:47]} 9. Nc3 {[%emt 0:05:24]} a6 {[%emt 0:04:03]} 10. Bg5 {[%emt 0:05:55]} Be6 {[%emt 0:03:12]} 11. Ne2 {[%emt 0:06:10]} h6 {[%emt 0:08:15]} 12. Bf4 {[%emt 0:11:49]} Ne4 {[%emt 0:06:45]} 13. Qc1 {[%emt 0:19:17]} Qf6 {[%emt 0:02:19]} 14. Nd2 {[%emt 0:08:20]} Nxf2 {[%emt 0:04:36]} 15. Kh2 {[%emt 0:03:49]} Nxd3 {[%emt 0:05:13]} 16. cxd3 {[%emt 0:00:54]} Qe7 {[%emt 0:00:10]} 17. Nf3 {[%emt 0:03:06]} Rac8 {[%emt 0:02:09]} 18. Qd2 {[%emt 0:02:02]} Rfe8 {[%emt 0:04:38]} 19. Ng3 {[%emt 0:06:19]} Bd6 {[%emt 0:04:00]} 20. a3 {[%emt 0:03:00]} d4 {[%emt 0:05:14]} 21. Rae1 {[%emt 0:02:04]} Bxf4 {[%emt 0:03:03]} 22. Qxf4 {[%emt 0:00:12]} Qc7 {[%emt 0:00:24]} 23. Qh4 {[%emt 0:03:56]} Qb6 {[%emt 0:04:40]} 24. b4 {[%emt 0:03:00]} Qb5 {[%emt 0:03:45]} 25. Ne4 {[%emt 0:02:53]} Qd5 {[%emt 0:03:12]} 26. Qg3 {[%emt 0:01:07]} Qb3 {[%emt 0:05:09]} 27. Nf6+ {[%emt 0:01:51]} Kh8 {[%emt 0:00:16]} 28. Nxe8 {[%emt 0:00:17]} Rxe8 {[%emt 0:00:08]} 29. Ne5 {[%emt 0:01:39]} Nxe5 {[%emt 0:06:40]} 30. Qxe5 {[%emt 0:00:06]} Qxd3 {[%emt 0:00:35]} 31. Rf3 {[%emt 0:00:32]} Qd2 {[%emt 0:01:27]} 32. Rg3 {[%emt 0:00:34]} Rg8 {[%emt 0:00:46]} 33. Re4 {[%emt 0:01:21]} d3 {[%emt 0:02:06]} 34. Qd4 {[%emt 0:01:25]} Bf5 {[%emt 0:02:33]} 35. Re8 {[%emt 0:00:38]} Bg6 {[%emt 0:00:33]} 36. Rge3 {[%emt 0:05:28]} Rxe8 {[%emt 0:01:34]} 37. Rxe8+ {[%emt 0:00:02]} Kh7 {[%emt 0:00:09]} 38. Rd8 {[%emt 0:00:54]} Qe2 {[%emt 0:01:47]} 39. Qg4 {[%emt 0:01:12]} Qb2 {[%emt 0:03:22]} 40. a4 {[%emt 0:00:35]} h5 {[%emt 0:01:58]} 41. Qf4 {[%emt 0:06:50]} Qe2 {[%emt 0:11:43]} 42. Rd4 {[%emt 0:04:30]} Qe8 {[%emt 0:02:51]} 43. a5 {[%emt 0:01:32]} Qe2 {[%emt 0:00:10]} 44. Qg5 {[%emt 0:02:55]} Be4 {[%emt 0:03:02]} 45. Rd7 {[%emt 0:01:41]} Bg6 {[%emt 0:00:39]} 46. Rd4 {[%emt 0:03:48]} Be4 {[%emt 0:00:09]} 47. Rd7 {[%emt 0:01:13]} Bg6 {[%emt 0:00:09]} 48. Qg3 {[%emt 0:02:54]} Qb2 {[%emt 0:05:23]} 49. Qf4 {[%emt 0:00:12]} Qe2 {[%emt 0:00:16]} 50. Qf3 {[%emt 0:00:45]} Be4 {[%emt 0:00:55]} 51. Qg3 {[%emt 0:03:37]} d2 {[%emt 0:00:22]} 52. Rxf7 {[%emt 0:02:35]} Bg6 {[%emt 0:00:07]} 53. Rc7 {[%emt 0:01:26]} d1=Q {[%emt 0:00:41]} 54. Qc3 {[%emt 0:00:18]} Qd6+ {[%emt 0:00:19]} 0-1

[Event "WJCC U20 Girls 2019"]
[Site "New Delhi"]
[Date "2019.10.19"]
[Round "6.27"]
[White "Harshita Guddanti"]
[Black "Chandreyee, Hajra"]
[Result "1-0"]
[ECO "B15"]
[WhiteElo "2123"]
[BlackElo "2024"]
[Annotator "NA"]
[PlyCount "93"]
[EventDate "2019.10.15"]
[EventType "swiss"]
[EventCountry "IND"]
[SourceTitle "playchess.com"]
[Source "ChessBase"]
[SourceQuality "1"]
[TimeControl "40/5400+30:1800+30"]

1. e4 {[%emt 0:00:12]} c6 {[%emt 0:00:00]} 2. d4 {[%emt 0:00:04]} d5 {[%emt 0:00:00]} 3. Nc3 {[%emt 0:00:50]} dxe4 {[%emt 0:00:00]} 4. Nxe4 {[%emt 0:00:08]} Nf6 {[%emt 0:00:00]} 5. Nxf6+ {[%emt 0:01:31]} exf6 {[%emt 0:00:00]} 6. Nf3 {[%emt 0:00:03]} Bd6 {[%emt 0:00:04]} 7. Be2 {[%emt 0:00:57]} O-O {[%emt 0:00:08]} 8. O-O {[%emt 0:00:06]} Bg4 {[%emt 0:00:13]} 9. Nh4 {[%emt 0:00:53]} f5 {[%emt 0:10:25]} 10. Nf3 {[%emt 0:07:32]} Re8 {[%emt 0:06:10]} 11. Re1 {[%emt 0:05:34]} Nd7 {[%emt 0:03:42]} 12. Bg5 {[%emt 0:02:12]} f6 {[%emt 0:06:26]} 13. Bd2 {[%emt 0:07:33]} Re4 {[%emt 0:10:51]} 14. c3 {[%emt 0:02:50]} Kh8 {[%emt 0:05:32]} 15. h3 {[%emt 0:06:07]} Bh5 {[%emt 0:03:29]} 16. Bd3 {[%emt 0:05:47]} Rxe1+ {[%emt 0:01:47]} 17. Qxe1 {[%emt 0:05:36]} Bxf3 {[%emt 0:05:29]} 18. gxf3 {[%emt 0:00:05]} g6 {[%emt 0:00:53]} 19. Qe6 {[%emt 0:02:23]} Nf8 {[%emt 0:05:21]} 20. Qf7 {[%emt 0:02:09]} Qe7 {[%emt 0:00:43]} 21. Qxe7 {[%emt 0:00:48]} Bxe7 {[%emt 0:00:06]} 22. Re1 {[%emt 0:00:24]} Bd6 {[%emt 0:01:10]} 23. c4 {[%emt 0:09:39]} Rd8 {[%emt 0:08:23]} 24. Bc3 {[%emt 0:00:26]} Rd7 {[%emt 0:02:29]} 25. b4 {[%emt 0:06:42]} Re7 {[%emt 0:02:43]} 26. c5 {[%emt 0:05:08]} Rxe1+ {[%emt 0:00:13]} 27. Bxe1 {[%emt 0:00:04]} Be7 {[%emt 0:04:26]} 28. Bc4 {[%emt 0:01:48]} Kg7 {[%emt 0:01:56]} 29. a4 {[%emt 0:05:33]} g5 {[%emt 0:04:20]} 30. Bd2 {[%emt 0:09:58]} h5 {[%emt 0:02:13]} 31. f4 {[%emt 0:02:53]} Bd8 {[%emt 0:02:28]} 32. h4 {[%emt 0:02:00]} gxh4 {[%emt 0:03:54]} 33. d5 {[%emt 0:03:11]} Ng6 {[%emt 0:04:37]} 34. d6 {[%emt 0:01:11]} Nf8 {[%emt 0:02:10]} 35. Be3 {[%emt 0:01:10]} a6 {[%emt 0:01:58]} 36. Kg2 {[%emt 0:01:26]} Kg6 {[%emt 0:01:06]} 37. Kh3 {[%emt 0:00:46]} Kg7 {[%emt 0:00:57]} 38. Kxh4 {[%emt 0:00:41]} Kg6 {[%emt 0:00:04]} 39. Kg3 {[%emt 0:01:32]} Kg7 {[%emt 0:00:06]} 40. Kh3 {[%emt 0:00:12]} Kg6 {[%emt 0:01:06]} 41. Kh4 {[%emt 0:30:30]} a5 {[%emt 0:30:42]} 42. b5 {[%emt 0:00:30]} Kh6 {[%emt 0:00:00]} 43. Bf7 {[%emt 0:00:00]} Nd7 {[%emt 0:00:00]} 44. Be6 {[%emt 0:00:00]} Nb8 {[%emt 0:00:00]} 45. Bc8 {[%emt 0:00:00]} cxb5 {[%emt 0:00:00]} 46. axb5 {[%emt 0:00:00]} a4 {[%emt 0:00:00]} 47. Bxb7 {[%emt 0:00:00]} 1-0

[Event "WJCC U20 Girls 2019"]
[Site "New Delhi"]
[Date "2019.10.19"]
[Round "6.28"]
[White "Dwilewicz, Katarzyna"]
[Black "Tsotsonava, Elene"]
[Result "1-0"]
[ECO "B48"]
[WhiteElo "2106"]
[BlackElo "1905"]
[Annotator "NA"]
[PlyCount "61"]
[EventDate "2019.10.15"]
[EventType "swiss"]
[EventCountry "IND"]
[SourceTitle "playchess.com"]
[Source "ChessBase"]
[SourceQuality "1"]
[TimeControl "40/5400+30:1800+30"]

1. e4 {[%emt 0:00:00]} c5 {[%emt 0:00:00]} 2. Nf3 {[%emt 0:00:00]} e6 {[%emt 0:00:00]} 3. d4 {[%emt 0:00:00]} cxd4 {[%emt 0:00:00]} 4. Nxd4 {[%emt 0:00:00]} Nc6 {[%emt 0:00:00]} 5. Nc3 {[%emt 0:00:03]} Qc7 {[%emt 0:00:00]} 6. Be3 {[%emt 0:00:05]} a6 {[%emt 0:00:05]} 7. Qf3 {[%emt 0:00:15]} Nf6 {[%emt 0:09:11]} 8. O-O-O {[%emt 0:00:51]} b5 {[%emt 0:03:13]} 9. e5 {[%emt 0:18:31]} b4 {[%emt 0:13:10]} 10. exf6 {[%emt 0:12:27]} bxc3 {[%emt 0:01:23]} 11. Nxc6 {[%emt 0:06:15]} Qb7 {[%emt 0:28:03]} 12. b3 {[%emt 0:05:33]} dxc6 {[%emt 0:09:41]} 13. Bd4 {[%emt 0:02:37]} g6 {[%emt 0:09:45]} 14. Bxc3 {[%emt 0:04:07]} c5 {[%emt 0:02:07]} 15. Qg3 {[%emt 0:02:10]} h5 {[%emt 0:02:25]} 16. h4 {[%emt 0:00:58]} Bh6+ {[%emt 0:00:51]} 17. Kb1 {[%emt 0:00:05]} O-O {[%emt 0:02:00]} 18. Be2 {[%emt 0:01:52]} Kh7 {[%emt 0:01:24]} 19. Bf3 {[%emt 0:00:49]} Qa7 {[%emt 0:00:28]} 20. Bxa8 {[%emt 0:00:59]} Qxa8 {[%emt 0:00:03]} 21. f3 {[%emt 0:01:14]} c4 {[%emt 0:01:08]} 22. Qc7 {[%emt 0:02:14]} Qb7 {[%emt 0:03:51]} 23. Qxc4 {[%emt 0:04:16]} Bd7 {[%emt 0:01:05]} 24. Qb4 {[%emt 0:01:06]} Rb8 {[%emt 0:03:18]} 25. Rxd7 {[%emt 0:09:59]} Qxb4 {[%emt 0:00:49]} 26. Bxb4 {[%emt 0:00:05]} Rxb4 {[%emt 0:00:09]} 27. Rhd1 {[%emt 0:00:48]} Rxh4 {[%emt 0:00:50]} 28. Rxf7+ {[%emt 0:00:14]} Kg8 {[%emt 0:00:05]} 29. Rc7 {[%emt 0:01:22]} Rf4 {[%emt 0:00:21]} 30. Rd8+ {[%emt 0:00:19]} Bf8 {[%emt 0:00:05]} 31. Rg7+ {[%emt 0:00:36]} 1-0

[Event "WJCC U20 Girls 2019"]
[Site "New Delhi"]
[Date "2019.10.19"]
[Round "6.29"]
[White "Ulziikhishigjargal, Ochirkhuyag"]
[Black "Bakshi, Rutuja"]
[Result "0-1"]
[ECO "C03"]
[WhiteElo "2194"]
[BlackElo "2029"]
[Annotator "ChessBase"]
[PlyCount "105"]
[EventDate "2019.10.15"]
[EventType "swiss"]
[EventCountry "IND"]
[SourceTitle "playchess.com"]
[Source "ChessBase"]
[SourceQuality "1"]
[TimeControl "40/5400+30:1800+30"]

1. e4 {[%emt 0:00:00]} e6 {[%emt 0:00:00]} 2. d4 {[%emt 0:00:00]} d5 {[%emt 0:00:01]} 3. Nd2 {[%emt 0:00:00]} a6 {[%emt 0:00:21]} 4. Ngf3 {[%emt 0:00:39]} c5 {[%emt 0:00:08]} 5. exd5 {[%emt 0:01:19]} exd5 {[%emt 0:00:14]} 6. dxc5 {[%emt 0:02:21]} Bxc5 {[%emt 0:00:07]} 7. Bd3 {[%emt 0:00:03]} Nf6 {[%emt 0:00:44]} 8. Nb3 {[%emt 0:02:36]} Bb6 {[%emt 0:04:12]} 9. O-O {[%emt 0:01:33]} O-O {[%emt 0:00:15]} 10. h3 {[%emt 0:01:51]} Nc6 {[%emt 0:02:11]} 11. c3 {[%emt 0:00:44]} Qd6 {[%emt 0:05:02]} 12. Nbd4 {[%emt 0:05:52]} Nxd4 {[%emt 0:09:05]} 13. cxd4 {[%emt 0:01:21]} Ne4 {[%emt 0:07:35]} 14. Re1 {[%emt 0:04:54]} Re8 {[%emt 0:12:18]} 15. Be3 {[%emt 0:06:31]} Bf5 {[%emt 0:08:57]} 16. Qb3 {[%emt 0:05:05]} Ba5 {[%emt 0:07:51]} 17. Rec1 {[%emt 0:04:49]} Rab8 {[%emt 0:09:29]} 18. Rc2 {[%emt 0:10:29]} Re7 {[%emt 0:07:26]} 19. Rac1 {[%emt 0:10:17]} Rbe8 {[%emt 0:01:20]} 20. Qa4 {[%emt 0:02:36]} Bb6 {[%emt 0:02:02]} 21. Ne5 {[%emt 0:22:00]} f6 {[%emt 0:04:06]} 22. Bxe4 {[%emt 0:02:31]} Bxe4 {[%emt 0:03:03]} 23. Rc8 {[%emt 0:00:04]} Rd8 {[%emt 0:07:37]} 24. Ng4 {[%emt 0:04:06]} Bf5 {[%emt 0:01:04]} 25. Rxd8+ {[%emt 0:00:50]} Bxd8 {[%emt 0:01:19]} 26. Nh2 {[%emt 0:00:37]} Bc7 {[%emt 0:01:11]} 27. Nf1 {[%emt 0:00:12]} Bd3 {[%emt 0:01:31]} 28. Qb3 {[%emt 0:00:15]} Bb5 {[%emt 0:01:35]} 29. a4 {[%emt 0:00:52]} Bc6 {[%emt 0:00:24]} 30. Qc2 {[%emt 0:00:05]} Qd7 {[%emt 0:01:20]} 31. b3 {[%emt 0:00:02]} Bb8 {[%emt 0:01:47]} 32. Qd2 {[%emt 0:01:43]} Qd6 {[%emt 0:00:47]} 33. Re1 {[%emt 0:01:19]} Re8 {[%emt 0:00:20]} 34. g3 {[%emt 0:00:50]} Qe6 {[%emt 0:00:27]} 35. h4 {[%emt 0:00:41]} Qf5 {[%emt 0:00:19]} 36. Qc1 {[%emt 0:01:49]} Re4 {[%emt 0:01:06]} 37. Nd2 {[%emt 0:00:34]} Rg4 {[%emt 0:00:29]} 38. Qb1 {[%emt 0:01:21]} Qh5 {[%emt 0:00:26]} 39. Nf1 {[%emt 0:03:20]} Bd7 {[%emt 0:00:38]} 40. Qd1 {[%emt 0:02:37]} Qxh4 {[%emt 0:00:30]} 41. Qf3 {[%emt 0:30:03]} Be6 {[%emt 0:30:34]} 42. Bf4 {[%emt 0:00:56]} Bc7 {[%emt 0:00:00]} 43. Rxe6 {[%emt 0:00:00]} Bxf4 {[%emt 0:00:00]} 44. Qc3 {[%emt 0:00:00]} Rg5 {[%emt 0:00:00]} 45. Qc7 {[%emt 0:00:00] Kf7 Qc8 Kg6 Re7} b5 {[%emt 0:00:00]} 46. axb5 {[%emt 0:00:00]} axb5 {[%emt 0:00:00]} 47. Qb7 {[%emt 0:00:00] Kh6 Qxb5} Bd6 {[%emt 0:00:00]} 48. Re3 {[%emt 0:00:00]} Qxd4 {[%emt 0:00:00]} 49. Rd3 {[%emt 0:00:00]} Qe4 {[%emt 0:00:00]} 50. Re3 {[%emt 0:00:00]} Qg4 {[%emt 0:00:00]} 51. Qc6 {[%emt 0:00:00]} Bb4 {[%emt 0:01:02]} 52. Nh2 {[%emt 0:00:00]} Qd4 {[%emt 0:00:30]} 53. Qe6+ {[%emt 0:05:08] Bd2 Rf3 Qe4 Qc6 Kg6 Qb5 d4 Qc4 Bc3 Rd3 Qd5 Qa4 Qb5 Rxd4 Bxd4 Qxd4 Qxb3 Qe4+ Kf7 Nf3 Rh5 Kg2 Qd5 Qe3 Re5 Qa7+ Re7 Qa3 g5 g4 Rb7 Qa8 Kg7 Qe8 Rb3 Qe7+ Qf7 Qe4 Qb7 Qf5 Rb5 Qd3 h5 Kg3 Qb8+ Kg2 Qb7 Kg3 Rb3 Qf5 h4+ Kg2 h3+ Kg3 h2} 0-1

[Event "WJCC U20 Girls 2019"]
[Site "New Delhi"]
[Date "2019.10.19"]
[Round "6.30"]
[White "Pychova, Nela"]
[Black "Cosme Contreras, Trilce"]
[Result "1-0"]
[ECO "B54"]
[WhiteElo "2178"]
[BlackElo "2027"]
[Annotator "NA"]
[PlyCount "118"]
[EventDate "2019.10.15"]
[EventType "swiss"]
[EventCountry "IND"]
[SourceTitle "playchess.com"]
[Source "ChessBase"]
[SourceQuality "1"]
[TimeControl "40/5400+30:1800+30"]

1. e4 {[%emt 0:00:00]} c5 {[%emt 0:00:00]} 2. Nf3 {[%emt 0:00:00]} d6 {[%emt 0:00:00]} 3. d4 {[%emt 0:00:14]} cxd4 {[%emt 0:00:00]} 4. Nxd4 {[%emt 0:00:08]} Nf6 {[%emt 0:00:07]} 5. f3 {[%emt 0:00:29]} a6 {[%emt 0:00:18]} 6. c4 {[%emt 0:01:10]} e6 {[%emt 0:01:08]} 7. Nc3 {[%emt 0:02:22]} Be7 {[%emt 0:00:43]} 8. Be2 {[%emt 0:01:07]} O-O {[%emt 0:00:53]} 9. Be3 {[%emt 0:05:34]} Qc7 {[%emt 0:00:41]} 10. O-O {[%emt 0:00:48]} Nc6 {[%emt 0:00:22]} 11. Rc1 {[%emt 0:05:25]} Rd8 {[%emt 0:05:37]} 12. Nd5 {[%emt 0:14:57]} exd5 {[%emt 0:01:30]} 13. cxd5 {[%emt 0:00:06]} Bd7 {[%emt 0:00:16]} 14. Qd2 {[%emt 0:09:26]} Rdc8 {[%emt 0:01:41]} 15. dxc6 {[%emt 0:01:35]} bxc6 {[%emt 0:04:00]} 16. Bc4 {[%emt 0:04:37]} Qb7 {[%emt 0:03:48]} 17. Rfd1 {[%emt 0:06:01]} a5 {[%emt 0:06:04]} 18. Ne2 {[%emt 0:08:20]} Be6 {[%emt 0:02:35]} 19. Nf4 {[%emt 0:06:31]} Bxc4 {[%emt 0:07:43]} 20. Rxc4 {[%emt 0:00:06]} Qb5 {[%emt 0:00:48]} 21. Rdc1 {[%emt 0:03:14]} c5 {[%emt 0:06:03]} 22. R4c2 {[%emt 0:06:41]} Rcb8 {[%emt 0:04:51]} 23. Ne2 {[%emt 0:04:19]} Rb7 {[%emt 0:04:12]} 24. Ng3 {[%emt 0:02:26]} Bf8 {[%emt 0:00:42]} 25. Bg5 {[%emt 0:01:03]} Ne8 {[%emt 0:02:17]} 26. Nf5 {[%emt 0:02:08]} Qa4 {[%emt 0:03:32]} 27. Ra1 {[%emt 0:06:39]} Qd7 {[%emt 0:02:31]} 28. Ne3 {[%emt 0:01:45]} Qe6 {[%emt 0:01:18]} 29. Nc4 {[%emt 0:01:18]} a4 {[%emt 0:01:04]} 30. Bf4 {[%emt 0:01:23]} Rb4 {[%emt 0:05:33]} 31. Qd3 {[%emt 0:00:37]} Rab8 {[%emt 0:02:59]} 32. Rd1 {[%emt 0:01:09]} g6 {[%emt 0:02:30]} 33. Bd2 {[%emt 0:00:32]} R4b7 {[%emt 0:01:14]} 34. Bc3 {[%emt 0:00:59]} Bg7 {[%emt 0:06:40]} 35. Bxg7 {[%emt 0:00:14]} Kxg7 {[%emt 0:00:05]} 36. Qd5 {[%emt 0:00:33]} Qxd5 {[%emt 0:02:00]} 37. Rxd5 {[%emt 0:00:06]} f6 {[%emt 0:04:42]} 38. Kf1 {[%emt 0:00:55]} Kf7 {[%emt 0:00:29]} 39. Rxd6 {[%emt 0:02:19]} Nxd6 {[%emt 0:00:55]} 40. Nxd6+ {[%emt 0:00:02]} Ke6 {[%emt 0:00:16]} 41. Nxb7 {[%emt 0:30:06]} Rxb7 {[%emt 0:30:01]} 42. Ke2 {[%emt 0:01:24]} Kd6 {[%emt 0:01:10]} 43. Kd3 {[%emt 0:00:00]} Kc6 {[%emt 0:00:00]} 44. Kc3 {[%emt 0:00:00]} h5 {[%emt 0:00:00]} 45. Rd2 {[%emt 0:00:00]} Rb8 {[%emt 0:00:00]} 46. Re2 {[%emt 0:00:00]} Rd8 {[%emt 0:00:00]} 47. Rd2 {[%emt 0:00:00]} Ra8 {[%emt 0:00:00]} 48. f4 {[%emt 0:00:00]} Re8 {[%emt 0:00:00]} 49. Re2 {[%emt 0:00:00]} g5 {[%emt 0:00:00]} 50. fxg5 {[%emt 0:00:51]} fxg5 {[%emt 0:00:00]} 51. e5 {[%emt 0:00:30]} Kd5 {[%emt 0:00:00]} 52. e6 {[%emt 0:02:15]} Rxe6 {[%emt 0:00:00]} 53. Rxe6 {[%emt 0:01:12]} Kxe6 {[%emt 0:00:00]} 54. Kc4 {[%emt 0:00:07]} Kd6 {[%emt 0:00:00]} 55. Kb5 {[%emt 0:00:48]} a3 {[%emt 0:00:00]} 56. b4 {[%emt 0:01:36]} cxb4 {[%emt 0:00:00]} 57. Kxb4 {[%emt 0:00:02]} Kd5 {[%emt 0:00:00]} 58. Kxa3 {[%emt 0:00:04]} Kc4 {[%emt 0:00:00]} 59. Kb2 {[%emt 0:00:34]} Kd5 1-0